[Event "Fagernes Chess GM-Swiss 2025"]
[Site "Fagernes"]
[Date "2025.04.19"]
[Round "8.11"]
[White "Lund, Gunnar"]
[Black "Bazakutsa, Svyatoslav"]
[Result "0-1"]
[Annotator "RC"]
[ECO "B22"]
[WhiteElo "2341"]
[BlackElo "2474"]
[PlyCount "106"]
[EventDate "2025.04.12"]
[EventCountry "NOR"]
[SourceTitle "playchess.com"]
[Source "ChessBase"]
[SourceQuality "1"]
[TimeControl "40/6000+30:2400+30"]

1. e4 {[%emt 0:09:59]} c5 {[%emt 0:00:12]} 2. c3 {[%emt 0:00:46]} d5 {[%emt 0:00:06]} 3. exd5 {[%emt 0:01:05]} Qxd5 {[%emt 0:00:06]} 4. d4 {[%emt 0:01:54]} Nf6 {[%emt 0:00:22]} 5. Nf3 {[%emt 0:01:41]} Nc6 {[%emt 0:00:15]} 6. Be2 {[%emt 0:02:20]} e6 {[%emt 0:00:52]} 7. Na3 {[%emt 0:02:51]} Be7 {[%emt 0:07:31]} 8. O-O {[%emt 0:06:49]} O-O {[%emt 0:02:16]} 9. dxc5 {[%emt 0:05:52]} Bxc5 {[%emt 0:12:59]} 10. Qxd5 {[%emt 0:01:37]} Nxd5 {[%emt 0:01:09]} 11. Nc2 {[%emt 0:01:19]} f6 {[%emt 0:09:44]} 12. Rd1 {[%emt 0:09:25]} Rd8 {[%emt 0:09:44]} 13. c4 {[%emt 0:10:03]} Nc7 {[%emt 0:10:33]} 14. Rxd8+ {[%emt 0:01:15]} Nxd8 {[%emt 0:03:53]} 15. Be3 {[%emt 0:00:41]} Be7 {[%emt 0:01:46]} 16. Nd2 {[%emt 0:10:00]} e5 {[%emt 0:04:34]} 17. Ne4 {[%emt 0:01:06]} f5 {[%emt 0:10:08]} 18. Bc5 {[%emt 0:02:13]} Kf8 {[%emt 0:01:36]} 19. Bxe7+ {[%emt 0:00:57]} Kxe7 {[%emt 0:00:02]} 20. Nc3 {[%emt 0:00:15]} b6 {[%emt 0:05:33]} 21. Ne3 {[%emt 0:07:41]} Nc6 {[%emt 0:02:39]} 22. f4 {[%emt 0:00:43]} Be6 {[%emt 0:10:40]} 23. fxe5 {[%emt 0:01:26]} Nxe5 {[%emt 0:00:06]} 24. Rd1 {[%emt 0:00:47]} Rd8 {[%emt 0:02:42]} 25. Rxd8 {[%emt 0:00:17]} Kxd8 {[%emt 0:00:03]} 26. b3 {[%emt 0:00:22]} Ke7 {[%emt 0:02:20]} 27. Kf2 {[%emt 0:00:22]} Kd6 {[%emt 0:00:54]} 28. Nc2 {[%emt 0:00:37]} g5 {[%emt 0:02:10]} 29. g3 {[%emt 0:00:29]} Bd7 {[%emt 0:00:12]} 30. Nb1 {[%emt 0:07:52]} Ne6 {[%emt 0:01:22]} 31. Nd2 {[%emt 0:00:20]} Bc6 {[%emt 0:00:50]} 32. Ke3 {[%emt 0:09:15]} f4+ {[%emt 0:01:30]} 33. Kf2 {[%emt 0:00:42]} Ke7 {[%emt 0:03:04]} 34. Nb4 {[%emt 0:01:01]} Bb7 {[%emt 0:00:50]} 35. Nd3 {[%emt 0:01:56]} Kd6 {[%emt 0:00:55]} 36. b4 {[%emt 0:02:50]} h6 {[%emt 0:00:55]} 37. a3 {[%emt 0:03:00]} Nxd3+ {[%emt 0:00:31]} 38. Bxd3 {[%emt 0:00:08]} Ke5 {[%emt 0:00:08]} 39. Nb3 {[%emt 0:00:45]} Be4 {[%emt 0:03:12]} 40. Bxe4 {[%emt 0:02:17]} Kxe4 {[%emt 0:00:01]} 41. a4 {[%emt 0:11:22]} fxg3+ {[%emt 0:25:52]} 42. Kxg3 {[%emt 0:03:57]} Nd4 {[%emt 0:03:54]} 43. c5 {[%emt 0:10:43]} Nxb3 {[%emt 0:01:00]} 44. c6 {[%emt 0:00:02]} Nd4 {[%emt 0:00:07]} 45. c7 {[%emt 0:00:34]} Nf5+ {[%emt 0:00:03]} 46. Kg4 {[%emt 0:00:06]} Ne7 {[%emt 0:01:17]} 47. Kh5 {[%emt 0:00:04]} Ke5 {[%emt 0:01:43]} 48. Kxh6 {[%emt 0:00:07]} g4 {[%emt 0:00:33]} 49. Kg5 {[%emt 0:00:27]} Kd6 {[%emt 0:00:05]} 50. Kxg4 {[%emt 0:00:18]} Kxc7 {[%emt 0:00:02]} 51. h4 {[%emt 0:00:37]} Kd6 {[%emt 0:00:17]} 52. a5 {[%emt 0:04:02]} b5 {[%emt 0:02:23]} 53. Kf4 {[%emt 0:00:48]} Ng6+ {[%emt 0:00:50]} 0-1

[Event "Fagernes Chess GM-Swiss 2025"]
[Site "Fagernes"]
[Date "2025.04.19"]
[Round "8.12"]
[White "Dotzer, Lukas"]
[Black "Grave, Jacob Templen"]
[Result "1/2-1/2"]
[Annotator "RC"]
[ECO "C88"]
[WhiteElo "2453"]
[BlackElo "2337"]
[PlyCount "127"]
[EventDate "2025.04.12"]
[EventCountry "NOR"]
[SourceTitle "playchess.com"]
[Source "ChessBase"]
[SourceQuality "1"]
[TimeControl "40/6000+30:2400+30"]

1. e4 {[%emt 0:00:02]} e5 {[%emt 0:00:05]} 2. Nf3 {[%emt 0:00:06]} Nc6 {[%emt 0:00:04]} 3. Bb5 {[%emt 0:00:06]} a6 {[%emt 0:00:40]} 4. Ba4 {[%emt 0:00:05]} Nf6 {[%emt 0:00:17]} 5. O-O {[%emt 0:00:08]} Be7 {[%emt 0:00:34]} 6. Re1 {[%emt 0:00:07]} b5 {[%emt 0:02:00]} 7. Bb3 {[%emt 0:00:06]} O-O {[%emt 0:00:20]} 8. a4 {[%emt 0:00:04]} Bb7 {[%emt 0:01:09]} 9. d3 {[%emt 0:00:41]} d6 {[%emt 0:01:27]} 10. Nbd2 {[%emt 0:01:32]} Nd7 {[%emt 0:03:45]} 11. c3 {[%emt 0:01:48]} Nc5 {[%emt 0:01:08]} 12. axb5 {[%emt 0:00:14]} axb5 {[%emt 0:00:26]} 13. Rxa8 {[%emt 0:00:07]} Qxa8 {[%emt 0:00:06]} 14. Bc2 {[%emt 0:00:14]} b4 {[%emt 0:01:50]} 15. d4 {[%emt 0:00:17]} bxc3 {[%emt 0:02:08]} 16. bxc3 {[%emt 0:00:06]} Nd7 {[%emt 0:00:24]} 17. Nc4 {[%emt 0:17:08]} exd4 {[%emt 0:22:58]} 18. cxd4 {[%emt 0:01:51]} Nb4 {[%emt 0:02:32]} 19. Ba4 {[%emt 0:14:44]} Nf6 {[%emt 0:17:18]} 20. d5 {[%emt 0:08:11]} c6 {[%emt 0:02:52]} 21. e5 {[%emt 0:09:53]} Nfxd5 {[%emt 0:04:08]} 22. exd6 {[%emt 0:00:28]} Bf6 {[%emt 0:01:26]} 23. d7 {[%emt 0:03:11]} Nc3 {[%emt 0:11:18]} 24. Qd6 {[%emt 0:05:03]} Nxa4 {[%emt 0:01:03]} 25. Qxb4 {[%emt 0:33:33]} c5 {[%emt 0:04:29]} 26. Qa3 {[%emt 0:00:32]} Bd5 {[%emt 0:10:03]} 27. Nfe5 {[%emt 0:07:51]} Be6 {[%emt 0:07:40]} 28. Bf4 {[%emt 0:01:40]} Rd8 {[%emt 0:09:13]} 29. Rd1 {[%emt 0:02:43]} Qe4 {[%emt 0:01:55]} 30. Qxa4 {[%emt 0:02:24]} Qxf4 {[%emt 0:00:20]} 31. g3 {[%emt 0:00:23]} Qe4 {[%emt 0:00:28]} 32. Qc6 {[%emt 0:00:39]} Qxc6 {[%emt 0:00:34]} 33. Nxc6 {[%emt 0:00:06]} Rxd7 {[%emt 0:01:20]} 34. Nd6 {[%emt 0:00:31]} h5 {[%emt 0:00:49]} 35. Nb8 {[%emt 0:00:16]} Rd8 {[%emt 0:00:16]} 36. Nc6 {[%emt 0:00:07]} Rd7 {[%emt 0:00:14]} 37. Nb8 {[%emt 0:00:05]} Ra7 {[%emt 0:00:58]} 38. Ne4 {[%emt 0:01:00]} Bd4 {[%emt 0:00:26]} 39. Nc6 {[%emt 0:00:18]} Rd7 {[%emt 0:00:34]} 40. Nxd4 {[%emt 0:01:32]} Rxd4 {[%emt 0:00:27]} 41. Rxd4 {[%emt 0:07:37]} cxd4 {[%emt 0:00:06]} 42. Nd2 {[%emt 0:14:16]} Kf8 {[%emt 0:12:22]} 43. Kf1 {[%emt 0:03:39]} Ke7 {[%emt 0:01:16]} 44. Nf3 {[%emt 0:00:58]} d3 {[%emt 0:00:31]} 45. Ke1 {[%emt 0:01:36]} Kf6 {[%emt 0:03:42]} 46. Kd2 {[%emt 0:01:10]} Bc4 {[%emt 0:00:35]} 47. Ne1 {[%emt 0:01:05]} Kf5 {[%emt 0:00:30]} 48. f3 {[%emt 0:00:42]} Ba6 {[%emt 0:00:41]} 49. Nxd3 {[%emt 0:02:28]} g6 {[%emt 0:04:15]} 50. Nc5 {[%emt 0:01:30]} Bc4 {[%emt 0:02:22]} 51. Ke3 {[%emt 0:00:12]} Bd5 {[%emt 0:01:07]} 52. Nd3 {[%emt 0:01:27]} Bc6 {[%emt 0:00:55]} 53. Nc1 {[%emt 0:00:26]} Bd5 {[%emt 0:01:36]} 54. Ne2 {[%emt 0:00:08]} Ke5 {[%emt 0:02:15]} 55. Nd4 {[%emt 0:01:41]} Bb7 {[%emt 0:00:47]} 56. f4+ {[%emt 0:00:54]} Kf6 {[%emt 0:01:01]} 57. Kd3 {[%emt 0:02:49]} Bd5 {[%emt 0:00:56]} 58. h4 {[%emt 0:02:25]} Ba2 {[%emt 0:02:32]} 59. Kc3 Bb1 {[%emt 0:01:20]} 60. Kc4 {[%emt 0:00:00]} Be4 {[%emt 0:00:28]} 61. Kc5 {[%emt 0:00:10]} Ke7 {[%emt 0:01:48]} 62. Nb5 {[%emt 0:01:22]} Ke6 {[%emt 0:03:53]} 63. Nd4+ {[%emt 0:01:50]} Ke7 {[%emt 0:00:00]} 64. Nb5 {[%emt 0:00:22]} 1/2-1/2

[Event "Fagernes Chess GM-Swiss 2025"]
[Site "Fagernes"]
[Date "2025.04.19"]
[Round "8.13"]
[White "Miezis, Normunds"]
[Black "Southcott-Moyers, Indy"]
[Result "1/2-1/2"]
[Annotator "RC"]
[ECO "C01"]
[WhiteElo "2409"]
[BlackElo "2227"]
[PlyCount "95"]
[EventDate "2025.04.12"]
[EventCountry "NOR"]
[SourceTitle "playchess.com"]
[Source "ChessBase"]
[SourceQuality "1"]
[TimeControl "40/6000+30:2400+30"]

1. c4 {[%emt 0:00:05]} e6 {[%emt 0:00:03]} 2. e4 {[%emt 0:01:58]} d5 {[%emt 0:00:07]} 3. exd5 {[%emt 0:00:26]} exd5 {[%emt 0:00:08]} 4. d4 {[%emt 0:00:47]} Nf6 {[%emt 0:00:07]} 5. Nc3 {[%emt 0:01:02]} Bb4 {[%emt 0:00:11]} 6. Bd3 {[%emt 0:00:59]} dxc4 {[%emt 0:00:11]} 7. Bxc4 {[%emt 0:00:11]} O-O {[%emt 0:00:04]} 8. Nf3 {[%emt 0:01:39]} Nc6 {[%emt 0:02:37]} 9. O-O {[%emt 0:02:40]} Bg4 {[%emt 0:00:05]} 10. Be3 {[%emt 0:00:13]} Qd6 {[%emt 0:13:03]} 11. Be2 {[%emt 0:07:08]} Rad8 {[%emt 0:00:13]} 12. Rc1 {[%emt 0:27:07]} a6 {[%emt 0:38:52]} 13. h3 {[%emt 0:09:05]} Bxf3 {[%emt 0:10:12]} 14. Bxf3 {[%emt 0:00:37]} Nxd4 {[%emt 0:00:54]} 15. Bxd4 {[%emt 0:06:40]} Qxd4 {[%emt 0:00:19]} 16. Qxd4 {[%emt 0:00:59]} Rxd4 {[%emt 0:00:08]} 17. Bxb7 {[%emt 0:00:15]} a5 {[%emt 0:12:38]} 18. a3 {[%emt 0:10:53]} Bd6 {[%emt 0:03:41]} 19. Nb5 {[%emt 0:02:42]} Rd2 {[%emt 0:00:20]} 20. Nxd6 {[%emt 0:00:19]} cxd6 {[%emt 0:00:06]} 21. b4 {[%emt 0:00:16]} axb4 {[%emt 0:00:25]} 22. axb4 {[%emt 0:00:27]} Rb8 {[%emt 0:12:09]} 23. b5 {[%emt 0:03:22]} Kf8 {[%emt 0:00:43]} 24. Bc6 {[%emt 0:01:28]} Nd5 {[%emt 0:04:38]} 25. Rfe1 {[%emt 0:12:16]} Nb4 {[%emt 0:04:09]} 26. Re4 {[%emt 0:07:57]} Nxc6 {[%emt 0:00:41]} 27. bxc6 {[%emt 0:00:47]} Rc8 {[%emt 0:03:50]} 28. Rb4 {[%emt 0:03:37]} Re2 {[%emt 0:01:27]} 29. Rb7 {[%emt 0:01:13]} Re7 {[%emt 0:00:54]} 30. Ra1 {[%emt 0:00:58]} Re6 {[%emt 0:02:00]} 31. g4 {[%emt 0:04:33]} g5 {[%emt 0:00:13]} 32. Raa7 {[%emt 0:00:44]} Rf6 {[%emt 0:00:10]} 33. Rc7 {[%emt 0:01:47]} Rxc7 {[%emt 0:00:15]} 34. Rxc7 {[%emt 0:00:04]} d5 {[%emt 0:00:09]} 35. f4 {[%emt 0:01:13]} Rxf4 {[%emt 0:00:40]} 36. Rd7 {[%emt 0:00:16]} Rc4 {[%emt 0:00:03]} 37. c7 {[%emt 0:00:34]} Kg7 {[%emt 0:00:03]} 38. Rxd5 {[%emt 0:00:23]} Rxc7 {[%emt 0:00:07]} 39. Rxg5+ {[%emt 0:00:08]} Kf8 {[%emt 0:00:21]} 40. Kg2 {[%emt 0:00:09]} Rc3 {[%emt 0:00:05]} 41. Rf5 {[%emt 0:40:15]} Kg7 {[%emt 0:40:14]} 42. Rf3 {[%emt 0:00:10]} Rxf3 {[%emt 0:00:11]} 43. Kxf3 {[%emt 0:00:10]} Kg6 {[%emt 0:00:02]} 44. Kf4 {[%emt 0:00:22]} h5 {[%emt 0:00:17]} 45. gxh5+ {[%emt 0:00:20]} Kxh5 {[%emt 0:00:07]} 46. Kf5 {[%emt 0:00:04]} Kh4 {[%emt 0:00:05]} 47. Kf6 {[%emt 0:00:06]} Kxh3 {[%emt 0:00:04]} 48. Kxf7 {[%emt 0:00:05]} 1/2-1/2

[Event "Fagernes Chess GM-Swiss 2025"]
[Site "Fagernes"]
[Date "2025.04.19"]
[Round "8.14"]
[White "Ostensen, Nicolai Maxime"]
[Black "Vestby-Ellingsen, Mads"]
[Result "1/2-1/2"]
[Annotator "RC"]
[ECO "C84"]
[WhiteElo "2260"]
[BlackElo "2398"]
[PlyCount "53"]
[EventDate "2025.04.12"]
[EventCountry "NOR"]
[SourceTitle "playchess.com"]
[Source "ChessBase"]
[SourceQuality "1"]
[TimeControl "40/6000+30:2400+30"]

1. e4 {[%emt 0:00:46]} e5 {[%emt 0:01:43]} 2. Nf3 {[%emt 0:00:14]} Nc6 {[%emt 0:00:12]} 3. Bb5 {[%emt 0:00:06]} a6 {[%emt 0:00:14]} 4. Ba4 {[%emt 0:00:04]} Nf6 {[%emt 0:00:09]} 5. d3 {[%emt 0:00:09]} b5 {[%emt 0:01:41]} 6. Bb3 {[%emt 0:00:18]} Be7 {[%emt 0:01:04]} 7. O-O {[%emt 0:00:23]} O-O {[%emt 0:00:21]} 8. a4 {[%emt 0:00:29]} Rb8 {[%emt 0:00:42]} 9. c3 {[%emt 0:01:12]} d6 {[%emt 0:00:26]} 10. Nbd2 {[%emt 0:01:11]} h6 {[%emt 0:02:19]} 11. Re1 {[%emt 0:00:50]} Na5 {[%emt 0:08:40]} 12. Bc2 {[%emt 0:02:12]} c5 {[%emt 0:00:20]} 13. axb5 {[%emt 0:03:23]} axb5 {[%emt 0:00:19]} 14. d4 {[%emt 0:04:49]} exd4 {[%emt 0:12:26]} 15. cxd4 {[%emt 0:00:04]} Nc6 {[%emt 0:00:28]} 16. h3 {[%emt 0:03:19]} Re8 {[%emt 0:12:05]} 17. Nf1 {[%emt 0:02:55]} cxd4 {[%emt 0:11:14]} 18. Nxd4 {[%emt 0:00:50]} Nxd4 {[%emt 0:01:26]} 19. Qxd4 {[%emt 0:00:03]} Qc7 {[%emt 0:00:20]} 20. Bb3 {[%emt 0:03:54]} Be6 {[%emt 0:06:34]} 21. Bxe6 {[%emt 0:01:33]} fxe6 {[%emt 0:00:10]} 22. Ra6 {[%emt 0:28:39]} Bf8 {[%emt 0:05:50]} 23. b3 {[%emt 0:14:20]} Nd7 {[%emt 0:10:11]} 24. Ra7 {[%emt 0:12:24]} Rb7 {[%emt 0:02:09]} 25. Rxb7 {[%emt 0:00:42]} Qxb7 {[%emt 0:00:08]} 26. Ng3 {[%emt 0:03:47]} Rc8 {[%emt 0:01:41]} 27. Be3 {[%emt 0:02:55]} 1/2-1/2

[Event "Fagernes Chess GM-Swiss 2025"]
[Site "Fagernes"]
[Date "2025.04.19"]
[Round "8.15"]
[White "Fiskaaen, Martin Holten"]
[Black "Aradhya, Garg"]
[Result "1/2-1/2"]
[Annotator "RC"]
[ECO "D45"]
[WhiteElo "2283"]
[BlackElo "2387"]
[PlyCount "57"]
[EventDate "2025.04.12"]
[EventCountry "NOR"]
[SourceTitle "playchess.com"]
[Source "ChessBase"]
[SourceQuality "1"]
[TimeControl "40/6000+30:2400+30"]

1. c4 {[%emt 0:00:19]} c6 {[%emt 0:00:07]} 2. Nf3 {[%emt 0:02:24]} d5 {[%emt 0:00:02]} 3. e3 {[%emt 0:00:55]} Nf6 {[%emt 0:00:08]} 4. Nc3 {[%emt 0:01:17]} Nbd7 {[%emt 0:00:07]} 5. d4 {[%emt 0:10:49]} e6 {[%emt 0:00:02]} 6. b3 {[%emt 0:01:07]} Bb4 {[%emt 0:00:25]} 7. Bd2 {[%emt 0:04:06]} Qe7 {[%emt 0:00:02]} 8. Be2 {[%emt 0:06:51]} O-O {[%emt 0:02:04]} 9. O-O {[%emt 0:02:17]} b6 {[%emt 0:02:25]} 10. Qc2 {[%emt 0:05:17]} Bb7 {[%emt 0:00:12]} 11. Rfe1 {[%emt 0:04:23]} dxc4 {[%emt 0:03:50]} 12. bxc4 {[%emt 0:02:45]} c5 {[%emt 0:03:52]} 13. Rad1 {[%emt 0:06:58]} Rac8 {[%emt 0:02:35]} 14. Qb3 {[%emt 0:00:41]} Rfd8 {[%emt 0:03:11]} 15. Nb1 {[%emt 0:05:42]} Bxd2 {[%emt 0:01:49]} 16. Nbxd2 {[%emt 0:00:08]} Nf8 {[%emt 0:03:47]} 17. Qa3 {[%emt 0:01:56]} Rd7 {[%emt 0:21:45]} 18. Ne5 {[%emt 0:07:49]} cxd4 {[%emt 0:03:45]} 19. Qxe7 {[%emt 0:00:07]} Rxe7 {[%emt 0:00:04]} 20. exd4 {[%emt 0:00:05]} N8d7 {[%emt 0:04:40]} 21. Nxd7 {[%emt 0:01:16]} Rxd7 {[%emt 0:00:08]} 22. Nb3 {[%emt 0:00:39]} a5 {[%emt 0:10:30]} 23. a4 {[%emt 0:22:40]} Ne4 {[%emt 0:08:24]} 24. Rc1 {[%emt 0:00:38]} Rdc7 {[%emt 0:03:59]} 25. Bf3 {[%emt 0:05:32]} Nd6 {[%emt 0:06:29]} 26. c5 {[%emt 0:00:19]} Bxf3 {[%emt 0:00:09]} 27. gxf3 {[%emt 0:00:13]} bxc5 {[%emt 0:00:46]} 28. Rxc5 {[%emt 0:00:17]} Ra7 {[%emt 0:05:36]} 29. Rcc1 {[%emt 0:00:03]} 1/2-1/2

[Event "Fagernes Chess GM-Swiss 2025"]
[Site "Fagernes"]
[Date "2025.04.19"]
[Round "8.16"]
[White "Eliseev, Sergey"]
[Black "Adharsh K"]
[Result "0-1"]
[Annotator "RC"]
[ECO "B62"]
[WhiteElo "2226"]
[BlackElo "2317"]
[PlyCount "100"]
[EventDate "2025.04.12"]
[EventCountry "NOR"]
[SourceTitle "playchess.com"]
[Source "ChessBase"]
[SourceQuality "1"]
[TimeControl "40/6000+30:2400+30"]

1. e4 {[%emt 0:04:37]} c5 {[%emt 0:00:25]} 2. Nf3 {[%emt 0:00:14]} d6 {[%emt 0:00:05]} 3. d4 {[%emt 0:00:27]} cxd4 {[%emt 0:00:03]} 4. Nxd4 {[%emt 0:00:07]} Nf6 {[%emt 0:00:05]} 5. Nc3 {[%emt 0:00:05]} Nc6 {[%emt 0:00:02]} 6. Bg5 {[%emt 0:00:19]} e6 {[%emt 0:00:06]} 7. Bb5 {[%emt 0:00:10]} Bd7 {[%emt 0:06:53]} 8. Qd3 {[%emt 0:00:15]} a6 {[%emt 0:19:26]} 9. Bxc6 {[%emt 0:00:35]} bxc6 {[%emt 0:00:13]} 10. O-O-O {[%emt 0:00:50]} Be7 {[%emt 0:10:26]} 11. Nb3 {[%emt 0:00:49]} h6 {[%emt 0:07:13]} 12. Bxf6 {[%emt 0:01:13]} gxf6 {[%emt 0:00:28]} 13. f4 {[%emt 0:01:11]} Qc7 {[%emt 0:06:29]} 14. f5 {[%emt 0:02:39]} Qa7 {[%emt 0:15:36]} 15. Nd4 {[%emt 0:11:11]} e5 {[%emt 0:01:28]} 16. Nf3 {[%emt 0:02:37]} a5 {[%emt 0:04:15]} 17. Nd2 {[%emt 0:02:25]} Rd8 {[%emt 0:00:44]} 18. Nc4 {[%emt 0:09:25]} Bc8 {[%emt 0:00:18]} 19. Qe3 {[%emt 0:01:33]} Qxe3+ {[%emt 0:02:32]} 20. Nxe3 {[%emt 0:00:02]} Ba6 {[%emt 0:00:19]} 21. b3 {[%emt 0:07:58]} Kd7 {[%emt 0:03:25]} 22. Nc4 {[%emt 0:14:39]} Bxc4 {[%emt 0:00:33]} 23. bxc4 {[%emt 0:00:16]} Kc7 {[%emt 0:00:35]} 24. Rd3 {[%emt 0:06:41]} h5 {[%emt 0:03:36]} 25. Kd2 {[%emt 0:02:10]} Rdg8 {[%emt 0:01:07]} 26. g3 {[%emt 0:04:22]} h4 {[%emt 0:00:30]} 27. Ne2 {[%emt 0:07:27]} Rg4 {[%emt 0:00:48]} 28. Rb1 {[%emt 0:03:03]} a4 {[%emt 0:13:18]} 29. Ke3 {[%emt 0:02:12]} hxg3 {[%emt 0:01:09]} 30. hxg3 {[%emt 0:00:02]} Rh2 {[%emt 0:00:28]} 31. Rd2 {[%emt 0:09:57]} Rg8 {[%emt 0:01:31]} 32. c3 {[%emt 0:02:49]} a3 {[%emt 0:01:44]} 33. Rb3 {[%emt 0:01:37]} d5 {[%emt 0:00:41]} 34. cxd5 {[%emt 0:00:51]} Bc5+ {[%emt 0:01:13]} 35. Kd3 {[%emt 0:00:02]} cxd5 {[%emt 0:01:30]} 36. exd5 {[%emt 0:00:06]} e4+ {[%emt 0:03:43]} 37. Kxe4 {[%emt 0:04:50]} Re8+ {[%emt 0:00:11]} 38. Kd3 {[%emt 0:00:05]} Re3+ {[%emt 0:00:07]} 39. Kc4 {[%emt 0:00:09]} Bd6 {[%emt 0:00:13]} 40. Rd4 {[%emt 0:06:19]} Rhxe2 {[%emt 0:00:16]} 41. Kb5 {[%emt 0:40:31]} Rxa2 {[%emt 0:40:46]} 42. Rc4+ {[%emt 0:03:38]} Kd7 {[%emt 0:00:05]} 43. Ra4 {[%emt 0:00:24]} Rb2 {[%emt 0:00:25]} 44. Ra7+ {[%emt 0:00:04]} Kc8 {[%emt 0:02:50]} 45. Kc4 {[%emt 0:00:00]} Re4+ {[%emt 0:00:00]} 46. Kd3 {[%emt 0:00:00]} Rxb3 {[%emt 0:00:00]} 47. Kxe4 {[%emt 0:00:00]} Rxc3 {[%emt 0:00:00]} 48. g4 {[%emt 0:00:00]} Rc4+ {[%emt 0:00:00]} 49. Kf3 {[%emt 0:00:00]} Rf4+ {[%emt 0:00:00]} 50. Ke3 {[%emt 0:00:00]} Bc5+ {[%emt 0:00:00]} 0-1

[Event "Fagernes Chess GM-Swiss 2025"]
[Site "Fagernes"]
[Date "2025.04.19"]
[Round "8.17"]
[White "Blomqvist, Erik"]
[Black "Myagmarsuren, Evsuld"]
[Result "1-0"]
[Annotator "RC"]
[ECO "B51"]
[WhiteElo "2475"]
[BlackElo "2305"]
[PlyCount "83"]
[EventDate "2025.04.12"]
[EventCountry "NOR"]
[SourceTitle "playchess.com"]
[Source "ChessBase"]
[SourceQuality "1"]
[TimeControl "40/6000+30:2400+30"]

1. e4 {[%emt 0:00:11]} c5 {[%emt 0:02:56]} 2. Nf3 {[%emt 0:01:03]} d6 {[%emt 0:00:47]} 3. Bb5+ {[%emt 0:00:18]} Nd7 {[%emt 0:00:05]} 4. O-O {[%emt 0:00:27]} a6 {[%emt 0:00:09]} 5. Bxd7+ {[%emt 0:00:07]} Bxd7 {[%emt 0:00:06]} 6. c3 {[%emt 0:00:14]} Nf6 {[%emt 0:01:37]} 7. Re1 {[%emt 0:00:09]} Bc6 {[%emt 0:03:59]} 8. d4 {[%emt 0:00:21]} Bxe4 {[%emt 0:12:55]} 9. Bg5 {[%emt 0:02:05]} Bxb1 {[%emt 0:04:00]} 10. Rxb1 {[%emt 0:06:55]} e6 {[%emt 0:00:54]} 11. Bxf6 {[%emt 0:02:08]} gxf6 {[%emt 0:12:16]} 12. d5 {[%emt 0:02:50]} e5 {[%emt 0:00:11]} 13. Nh4 {[%emt 0:01:53]} Qd7 {[%emt 0:00:51]} 14. Qh5 {[%emt 0:04:25]} O-O-O {[%emt 0:06:42]} 15. Re3 {[%emt 0:04:47]} Qa4 {[%emt 0:06:39]} 16. a3 {[%emt 0:14:08]} Rd7 {[%emt 0:05:28]} 17. Rg3 {[%emt 0:12:09]} a5 {[%emt 0:13:25]} 18. Rg4 {[%emt 0:08:23]} Qb3 {[%emt 0:00:54]} 19. c4 {[%emt 0:05:40]} Qa2 {[%emt 0:05:32]} 20. Rf1 {[%emt 0:15:38]} Qxb2 {[%emt 0:00:54]} 21. a4 {[%emt 0:03:09]} Qb3 {[%emt 0:08:19]} 22. Nf5 {[%emt 0:07:38]} Kc7 {[%emt 0:09:34]} 23. Qh4 {[%emt 0:04:45]} Be7 {[%emt 0:00:04]} 24. Rg7 {[%emt 0:05:34]} Bd8 {[%emt 0:00:36]} 25. Rxh7 {[%emt 0:00:49]} Rg8 {[%emt 0:01:25]} 26. Qe4 {[%emt 0:05:01]} Qxa4 {[%emt 0:00:43]} 27. Qe2 {[%emt 0:01:55]} Qb4 {[%emt 0:02:29]} 28. Qc2 {[%emt 0:01:01]} a4 {[%emt 0:08:33]} 29. Rb1 {[%emt 0:00:21]} Qa5 {[%emt 0:00:11]} 30. Rh3 {[%emt 0:00:28]} Rg4 {[%emt 0:00:37]} 31. Rc3 {[%emt 0:00:37]} Kc8 {[%emt 0:01:04]} 32. Rb5 {[%emt 0:00:13]} Qa8 {[%emt 0:01:35]} 33. Ra3 {[%emt 0:00:11]} Ba5 {[%emt 0:00:11]} 34. Rxa4 {[%emt 0:00:15]} b6 {[%emt 0:00:09]} 35. Nxd6+ {[%emt 0:00:26]} Kc7 {[%emt 0:00:36]} 36. Nf5 {[%emt 0:00:59]} Qg8 {[%emt 0:00:34]} 37. Ne3 {[%emt 0:00:57]} Rg5 {[%emt 0:00:50]} 38. Raxa5 {[%emt 0:00:23]} bxa5 {[%emt 0:00:07]} 39. Rxc5+ {[%emt 0:00:29]} Kd6 {[%emt 0:00:27]} 40. Rc6+ {[%emt 0:00:35]} Ke7 {[%emt 0:00:05]} 41. h4 {[%emt 0:03:42]} Qg6 {[%emt 0:04:20]} 42. hxg5 {[%emt 0:00:19]} 1-0

[Event "Fagernes Chess GM-Swiss 2025"]
[Site "Fagernes"]
[Date "2025.04.19"]
[Round "8.18"]
[White "Vijayakumar, Rishi"]
[Black "Aamodt, Peder Marcus"]
[Result "1-0"]
[Annotator "RC"]
[ECO "D78"]
[WhiteElo "2317"]
[BlackElo "2242"]
[PlyCount "95"]
[EventDate "2025.04.12"]
[EventCountry "NOR"]
[SourceTitle "playchess.com"]
[Source "ChessBase"]
[SourceQuality "1"]
[TimeControl "40/6000+30:2400+30"]

1. d4 {[%emt 0:00:05]} Nf6 {[%emt 0:00:34]} 2. c4 {[%emt 0:00:04]} g6 {[%emt 0:00:13]} 3. g3 {[%emt 0:00:57]} c6 {[%emt 0:03:47]} 4. Bg2 {[%emt 0:00:12]} d5 {[%emt 0:00:04]} 5. Nf3 {[%emt 0:00:07]} Bg7 {[%emt 0:00:23]} 6. O-O {[%emt 0:00:19]} O-O {[%emt 0:00:07]} 7. Nc3 {[%emt 0:01:40]} dxc4 {[%emt 0:09:01]} 8. e4 {[%emt 0:00:59]} b5 {[%emt 0:01:34]} 9. Qe2 {[%emt 0:00:20]} a5 {[%emt 0:05:28]} 10. Rd1 {[%emt 0:03:38]} Qb6 {[%emt 0:06:08]} 11. e5 {[%emt 0:11:42]} Nd5 {[%emt 0:00:50]} 12. Ng5 {[%emt 0:03:08]} Nxc3 {[%emt 0:18:52]} 13. bxc3 {[%emt 0:00:01]} h6 {[%emt 0:00:10]} 14. Ne4 {[%emt 0:00:58]} Na6 {[%emt 0:00:25]} 15. Be3 {[%emt 0:06:50]} Qc7 {[%emt 0:02:18]} 16. h4 {[%emt 0:00:51]} Be6 {[%emt 0:06:30]} 17. h5 {[%emt 0:19:48]} Rad8 {[%emt 0:07:42]} 18. f4 {[%emt 0:04:03]} Qc8 {[%emt 0:04:47]} 19. Bf3 {[%emt 0:03:30]} Bd5 {[%emt 0:03:15]} 20. Kf2 {[%emt 0:03:00]} Nc7 {[%emt 0:05:01]} 21. Rh1 {[%emt 0:04:22]} b4 {[%emt 0:05:53]} 22. a4 {[%emt 0:03:08]} f5 {[%emt 0:04:39]} 23. Nc5 {[%emt 0:11:38]} Ne6 {[%emt 0:01:43]} 24. Bxd5 {[%emt 0:12:30]} cxd5 {[%emt 0:00:15]} 25. Rhb1 {[%emt 0:00:47]} Nxc5 {[%emt 0:02:22]} 26. dxc5 {[%emt 0:00:01]} b3 {[%emt 0:00:10]} 27. hxg6 {[%emt 0:00:25]} Qc6 {[%emt 0:00:33]} 28. Qh5 {[%emt 0:00:40]} Ra8 {[%emt 0:01:23]} 29. Bd4 {[%emt 0:00:17]} Ra6 {[%emt 0:00:51]} 30. Qf3 {[%emt 0:02:16]} Qd7 {[%emt 0:10:06]} 31. Qh5 {[%emt 0:02:24]} Qe6 {[%emt 0:02:18]} 32. Qf3 {[%emt 0:00:29]} Rd8 {[%emt 0:00:04]} 33. Rg1 {[%emt 0:00:20]} Qxg6 {[%emt 0:02:15]} 34. g4 {[%emt 0:00:08]} fxg4 {[%emt 0:04:58]} 35. Rxg4 {[%emt 0:00:13]} Qc2+ {[%emt 0:00:24]} 36. Qe2 {[%emt 0:00:15]} Qxe2+ {[%emt 0:01:52]} 37. Kxe2 {[%emt 0:00:08]} Kh7 {[%emt 0:01:20]} 38. f5 {[%emt 0:01:29]} Rf8 {[%emt 0:00:33]} 39. Rag1 {[%emt 0:00:24]} Bh8 {[%emt 0:00:23]} 40. Rg6 {[%emt 0:01:57]} Rxg6 {[%emt 0:00:35]} 41. fxg6+ {[%emt 0:40:08]} Kg8 {[%emt 0:05:25]} 42. g7 {[%emt 0:00:00]} Bxg7 {[%emt 0:00:13]} 43. e6 {[%emt 0:00:00]} Rf4 {[%emt 0:00:39]} 44. Rxg7+ {[%emt 0:00:00]} Kf8 {[%emt 0:00:41]} 45. Kd2 {[%emt 0:00:00]} Re4 {[%emt 0:10:20]} 46. Rg6 {[%emt 0:00:00]} Rh4 {[%emt 0:00:04]} 47. Bg7+ {[%emt 0:00:00]} Ke8 {[%emt 0:00:08]} 48. Be5 {[%emt 0:00:00]} 1-0